fUSD/lending_fUSD_20240701
["ID","MTS","AMOUNT","RATE_DAILY","PERIOD"]
[330846791,1719863442038,-151.0,0.00021817,2]
[330846792,1719863442047,-419.313129,0.00021817,2]
[330846793,1719863442056,-419.313129,0.00021817,2]
[330846794,1719863442066,-151.0,0.00021817,2]
[330846795,1719863442076,-151.0,0.00021817,2]
[330846796,1719863442085,-151.0,0.00021817,2]
[330846797,1719863442095,-151.0,0.00021817,2]
[330846798,1719863442104,-235.889707,0.00021817,2]
[330846799,1719863442113,-151.0,0.00021817,2]
[330846800,1719863442123,-235.889707,0.00021817,2]
[330846801,1719863442133,-151.0,0.00021817,2]
[330846802,1719863442144,-605.839599,0.00021817,2]
[330846803,1719863442154,-605.839599,0.00021817,2]
[330846804,1719863442164,-179.49623,0.00021817,2]
[330846805,1719863442173,-151.0,0.00021817,2]
[330846806,1719863442183,-188.272434,0.00021817,2]
[330846807,1719863442193,-780.514645,0.00021817,2]
[330846808,1719863442203,-780.514645,0.00021817,2]
[330846809,1719863442212,-390.148636,0.00021817,2]
[330846810,1719863442222,-390.148636,0.00021817,2]
[330846811,1719863442231,-151.0,0.00021817,2]
[330846812,1719863442241,-151.0,0.00021817,2]
[330846813,1719863442250,-151.0,0.00021817,2]
[330846814,1719863442259,-151.0,0.00021817,2]
[330846815,1719863442269,-151.0,0.00021817,2]
[330846816,1719863442278,-156.087441,0.00021817,2]
[330846817,1719863442288,-411.926351,0.00021817,2]
[330846818,1719863442298,-411.926351,0.00021817,2]
[330846819,1719863442308,-772.635236,0.00021817,2]
[330846820,1719863442318,-772.635236,0.00021817,2]
[330846821,1719863442327,-1343.982711,0.00021817,2]
[330846822,1719863442337,-151.0,0.00021817,2]
[330846823,1719863442346,-151.0,0.00021817,2]
[330846824,1719863442356,-1343.982711,0.00021817,2]
[330846825,1719863442365,-151.0,0.00021817,2]
[330846826,1719863442375,-151.0,0.00021817,2]
[330846827,1719863442385,-151.0,0.00021817,2]
[330846828,1719863442394,-151.0,0.00021817,2]
[330846829,1719863442404,-151.0,0.00021817,2]
[330846830,1719863442413,-150.0,0.00021818,2]
[330846831,1719863442423,-150.0,0.00021821,2]
[330846832,1719863442432,-150.0,0.00021836,2]
[330846833,1719863442441,-225.0587832,0.00021838,2]
[330846834,1719863442451,-9651.56552292,0.00021839,2]
[330846835,1719863442460,-3338.79291377,0.00021839,2]
[330846836,1719863442470,-1234.57216479,0.00021839,2]
[330846837,1719863442479,-151.0,0.00021839,2]
[330846838,1719863442488,-151.0,0.00021839,2]
[330846839,1719863442498,-151.0,0.00021839,2]
[330846840,1719863442507,-151.0,0.00021839,2]
[330846841,1719863442516,-151.0,0.00021839,2]
[330846842,1719863442526,-151.0,0.00021839,2]
[330846843,1719863442537,-151.0,0.00021839,2]
[330846844,1719863442548,-151.0,0.00021839,2]
[330846845,1719863442558,-407.62032,0.00021839,2]
[330846846,1719863442568,-224.50593,0.00021839,2]
[330846847,1719863442578,-407.62032,0.00021839,2]
[330846848,1719863442588,-826.212408,0.00021839,2]
[330846849,1719863442598,-826.212408,0.00021839,2]
[330846850,1719863442609,-415.29111,0.00021839,2]
[330846851,1719863442619,-415.29111,0.00021839,2]
[330846852,1719863442631,-151.0,0.00021839,2]
[330846853,1719863442641,-669.812282,0.00021839,2]
[330846854,1719863442651,-151.0,0.00021839,2]
[330846855,1719863442660,-669.812282,0.00021839,2]
[330846856,1719863442669,-151.0,0.00021839,2]
[330846857,1719863442679,-151.0,0.00021839,2]
[330846858,1719863442688,-151.0,0.00021839,2]
[330846859,1719863442698,-151.0,0.00021839,2]
[330846860,1719863442707,-175.653556,0.00021839,2]
[330846861,1719863442719,-175.653556,0.00021839,2]
[330846862,1719863442728,-1180.839963,0.00021839,2]
[330846863,1719863442738,-1180.839963,0.00021839,2]
[330846864,1719863442748,-151.528489,0.00021839,2]
[330846865,1719863442759,-622.501496,0.00021839,2]
[330846866,1719863442769,-622.501496,0.00021839,2]
[330846867,1719863442779,-6824.137721,0.00021839,2]
[330846868,1719863442790,-6824.137721,0.00021839,2]
[330846869,1719863442801,-677.732097,0.00021839,2]
[330846871,1719863442810,-248.704096,0.00021839,2]
[330846872,1719863442820,-677.732097,0.00021839,2]
[330846873,1719863442830,-151.0,0.00021839,2]
[330846874,1719863442839,-151.0,0.00021839,2]
[330846875,1719863442849,-151.0,0.00021839,2]
[330846876,1719863442858,-151.0,0.00021839,2]
[330846878,1719863442868,-173.65,0.00021839,2]
[330846879,1719863442877,-151.0,0.00021839,2]
[330846880,1719863442887,-173.65,0.00021839,2]
[330846881,1719863442897,-151.0,0.00021839,2]
[330846882,1719863442907,-151.0,0.00021839,2]
[330846883,1719863442916,-151.0,0.00021839,2]
[330846884,1719863442925,-151.0,0.00021839,2]
[330846885,1719863442935,-151.0,0.00021839,2]
[330846886,1719863442944,-151.0,0.00021839,2]
[330846887,1719863442953,-150.0,0.00021841,2]
[330846889,1719863442963,-150.0,0.00021841,2]
[330846892,1719863442973,-12762.29138076,0.00021848,3]
[330846894,1719863442982,-150.0,0.00021849,2]
[330846897,1719863442992,-90001.64958044,0.00021852,4]
[330846899,1719863443001,-151.0,0.00021852,2]
[330846900,1719863443010,-151.0,0.00021852,2]
[330846902,1719863443020,-299.330384,0.00021852,2]
[330846904,1719863443029,-220.156169,0.00021852,2]
[330846907,1719863443039,-299.330384,0.00021852,2]
[330846910,1719863443048,-220.156169,0.00021852,2]
[330846913,1719863443057,-151.0,0.00021852,2]
[330846916,1719863443067,-151.0,0.00021852,2]
[330846919,1719863443076,-151.0,0.00021852,2]
[330846922,1719863443085,-151.0,0.00021852,2]
[330846924,1719863443095,-151.0,0.00021852,2]
[330846926,1719863443104,-151.0,0.00021852,2]
[330846928,1719863443114,-151.0,0.00021852,2]
[330846930,1719863443124,-151.0,0.00021852,2]
[330846932,1719863443134,-151.0,0.00021852,2]
[330846934,1719863443144,-232.084032,0.00021852,2]
[330846936,1719863443153,-151.0,0.00021852,2]
[330846938,1719863443162,-151.0,0.00021852,2]
[330846940,1719863443172,-151.0,0.00021852,2]
[330846941,1719863443181,-151.0,0.00021852,2]
[330846942,1719863443190,-208.634423,0.00021852,2]
[330846943,1719863443199,-208.634423,0.00021852,2]
[330846944,1719863443208,-151.0,0.00021852,2]
[330846945,1719863443220,-151.0,0.00021852,2]
[330846946,1719863443229,-151.0,0.00021852,2]
[330846947,1719863443238,-151.0,0.00021852,2]
[330846948,1719863443247,-151.0,0.00021852,2]
[330846949,1719863443256,-276.941213,0.00021852,2]
[330846950,1719863443265,-151.0,0.00021852,2]
[330846951,1719863443275,-151.0,0.00021852,2]
[330846952,1719863443285,-667.589417,0.00021852,2]
[330846953,1719863443294,-667.589417,0.00021852,2]
[330846954,1719863443304,-151.0,0.00021852,2]
[330846955,1719863443313,-151.0,0.00021852,2]
[330846956,1719863443323,-151.0,0.00021852,2]
[330846957,1719863443333,-151.0,0.00021852,2]
[330846958,1719863443343,-151.0,0.00021852,2]
[330846959,1719863443353,-150.0,0.00021861,2]
[330846960,1719863443363,-152.6637232,0.00021863,2]
[330846961,1719863443372,-150.0,0.00021864,2]
[330846962,1719863443382,-150.0,0.00021865,2]
[330846963,1719863443392,-224.11749428,0.00021867,7]
[330846964,1719863443402,-2537.59950704,0.0002187,2]
[330846965,1719863443411,-150.0,0.00021873,2]
[330846966,1719863443421,-150.0,0.00021874,2]
[330846967,1719863443430,-300.0,0.00021874,2]
[330846968,1719863443440,-300.0,0.00021874,2]
[330846969,1719863443449,-300.0,0.00021874,2]
[330846970,1719863443459,-300.0,0.00021874,2]
[330846971,1719863443471,-300.0,0.00021874,2]
[330846972,1719863443481,-300.0,0.00021874,2]
[330846973,1719863443490,-128194.4211026,0.00021875,2]
[330846974,1719863443505,-7331.0992969,0.00021875,2]
[330846975,1719863443514,-348.6766559,0.00021875,2]
[330846976,1719863443524,-26049.7762881,0.00021875,2]
[330846977,1719863443539,-29082.8431792,0.00021875,2]
[330846978,1719863443549,-151.0,0.00021875,2]
[330846979,1719863443559,-151.0,0.00021875,2]
[330846980,1719863443568,-151.0,0.00021875,2]
[330846981,1719863443579,-151.0,0.00021875,2]
[330846982,1719863443589,-419.313129,0.00021875,2]
[330846983,1719863443599,-419.313129,0.00021875,2]
[330846984,1719863443608,-151.0,0.00021875,2]
[330846985,1719863443620,-151.0,0.00021875,2]
[330846986,1719863443632,-151.0,0.00021875,2]
[330846987,1719863443642,-151.0,0.00021875,2]
[330846988,1719863443651,-235.889707,0.00021875,2]
[330846989,1719863443661,-151.0,0.00021875,2]
[330846990,1719863443671,-235.889707,0.00021875,2]
[330846991,1719863443681,-151.0,0.00021875,2]
[330846992,1719863443691,-605.839599,0.00021875,2]
[330846993,1719863443701,-605.839599,0.00021875,2]
[330846994,1719863443711,-151.0,0.00021875,2]
[330846995,1719863443727,-780.514645,0.00021875,2]
[330846996,1719863443737,-780.514645,0.00021875,2]
[330846997,1719863443748,-390.148636,0.00021875,2]
[330846998,1719863443758,-390.148636,0.00021875,2]
[330846999,1719863443771,-151.0,0.00021875,2]
[330847000,1719863443784,-151.0,0.00021875,2]
[330847001,1719863443794,-151.0,0.00021875,2]
[330847002,1719863443805,-151.0,0.00021875,2]
[330847003,1719863443815,-151.0,0.00021875,2]
[330847004,1719863443824,-151.0,0.00021875,2]
[330847005,1719863443834,-151.0,0.00021875,2]
[330847006,1719863443844,-151.0,0.00021875,2]
[330847007,1719863443854,-151.0,0.00021875,2]
[330847008,1719863443865,-151.0,0.00021875,2]
[330847009,1719863443875,-151.0,0.00021875,2]
[330847010,1719863443886,-151.0,0.00021875,2]
[330847011,1719863443896,-151.0,0.00021875,2]
[330847012,1719863443906,-407.62032,0.00021875,2]
[330847013,1719863443916,-407.62032,0.00021875,2]
[330847014,1719863443926,-826.212408,0.00021875,2]
[330847015,1719863443936,-826.212408,0.00021875,2]
[330847016,1719863443946,-415.29111,0.00021875,2]
[330847017,1719863443957,-415.29111,0.00021875,2]
[330847018,1719863443968,-151.0,0.00021875,2]
[330847019,1719863443978,-669.812282,0.00021875,2]
[330847020,1719863443987,-151.0,0.00021875,2]
[330847021,1719863443997,-669.812282,0.00021875,2]
[330847022,1719863444007,-151.0,0.00021875,2]
[330847023,1719863444016,-151.0,0.00021875,2]
[330847024,1719863444026,-151.0,0.00021875,2]
[330847025,1719863444037,-151.0,0.00021875,2]
[330847026,1719863444046,-175.653556,0.00021875,2]
[330847027,1719863444056,-175.653556,0.00021875,2]
[330847028,1719863444066,-1180.839963,0.00021875,2]
[330847029,1719863444076,-1180.839963,0.00021875,2]
[330847030,1719863444086,-622.501496,0.00021875,2]
[330847031,1719863444096,-622.501496,0.00021875,2]
[330847032,1719863444106,-6824.137721,0.00021875,2]
[330847033,1719863444116,-677.732097,0.00021875,2]
[330847034,1719863444125,-6824.137721,0.00021875,2]
[330847035,1719863444136,-677.732097,0.00021875,2]
[330847036,1719863444147,-151.0,0.00021875,2]
[330847037,1719863444157,-151.0,0.00021875,2]
[330847038,1719863444167,-151.0,0.00021875,2]
[330847039,1719863444177,-151.0,0.00021875,2]
[330847040,1719863444188,-173.65,0.00021875,2]
[330847041,1719863444198,-151.0,0.00021875,2]
[330847042,1719863444208,-173.65,0.00021875,2]
[330847043,1719863444218,-411.926351,0.00021875,2]
[330847044,1719863444228,-411.926351,0.00021875,2]
[330847045,1719863444238,-772.635236,0.00021875,2]
[330847046,1719863444248,-772.635236,0.00021875,2]
[330847047,1719863444258,-1343.982711,0.00021875,2]
[330847048,1719863444268,-151.0,0.00021875,2]
[330847049,1719863444278,-1343.982711,0.00021875,2]
[330847050,1719863444288,-151.69907,0.00021875,2]
[330847051,1719863444299,-151.0,0.00021875,2]
[330847052,1719863444309,-151.0,0.00021875,2]
[330847053,1719863444320,-151.0,0.00021875,2]
[330847054,1719863444330,-166.249795,0.00021875,2]
[330847055,1719863444340,-151.0,0.00021875,2]
[330847056,1719863444351,-151.329121,0.00021875,2]
[330847057,1719863444361,-151.0,0.00021875,2]
[330847058,1719863444371,-151.0,0.00021875,2]
[330847059,1719863444381,-151.0,0.00021875,2]
[330847060,1719863444391,-300.0,0.00021876,2]
[330847061,1719863444401,-300.0,0.00021876,2]
[330847062,1719863444411,-300.0,0.00021876,2]
[330847063,1719863444421,-300.0,0.00021876,2]
[330847064,1719863444431,-300.0,0.00021876,2]
[330847065,1719863444440,-104670.3701551,0.00021877,2]
[330847066,1719863444451,-81146.3192076,0.00021877,2]
[330847067,1719863444460,-57622.2682601,0.00021877,2]
[330847068,1719863444471,-34098.2173125,0.00021877,2]
[330847069,1719863444481,-151.334627,0.00021877,2]
[330847070,1719863444492,-151.0,0.00021877,2]
[330847071,1719863444501,-151.0,0.00021877,2]
[330847072,1719863444512,-151.0,0.00021877,2]
[330847073,1719863444522,-151.0,0.00021877,2]
[330847074,1719863444532,-151.0,0.00021877,2]
[330847075,1719863444545,-151.0,0.00021877,2]
[330847076,1719863444555,-151.0,0.00021877,2]
[330847077,1719863444565,-299.330384,0.00021877,2]
[330847078,1719863444575,-220.156169,0.00021877,2]
[330847079,1719863444586,-299.330384,0.00021877,2]
[330847080,1719863444597,-220.156169,0.00021877,2]
[330847081,1719863444607,-151.0,0.00021877,2]
[330847082,1719863444617,-151.0,0.00021877,2]
[330847083,1719863444628,-151.0,0.00021877,2]
[330847084,1719863444637,-177.47181145,0.00021877,2]
[330847085,1719863444647,-151.0,0.00021877,2]
[330847086,1719863444657,-419.313129,0.00021877,2]
[330847087,1719863444667,-419.313129,0.00021877,2]
[330847088,1719863444676,-151.0,0.00021877,2]
[330847089,1719863444686,-151.0,0.00021877,2]
[330847090,1719863444695,-151.0,0.00021877,2]
[330847091,1719863444705,-151.0,0.00021877,2]
[330847092,1719863444715,-235.889707,0.00021877,2]
[330847093,1719863444725,-151.0,0.00021877,2]
[330847094,1719863444735,-235.889707,0.00021877,2]
[330847095,1719863444745,-151.0,0.00021877,2]
[330847096,1719863444756,-605.839599,0.00021877,2]
[330847097,1719863444767,-605.839599,0.00021877,2]
[330847098,1719863444777,-151.0,0.00021877,2]
[330847099,1719863444786,-780.514645,0.00021877,2]
[330847100,1719863444796,-780.514645,0.00021877,2]
[330847101,1719863444805,-390.148636,0.00021877,2]
[330847102,1719863444815,-390.148636,0.00021877,2]
[330847103,1719863444824,-151.0,0.00021877,2]
[330847104,1719863444834,-151.0,0.00021877,2]
[330847105,1719863444844,-151.0,0.00021877,2]
[330847106,1719863444853,-151.0,0.00021877,2]
[330847107,1719863444863,-151.0,0.00021877,2]
[330847108,1719863444873,-151.0,0.00021877,2]
[330847109,1719863444883,-151.0,0.00021877,2]
[330847110,1719863444893,-151.0,0.00021877,2]
[330847111,1719863444903,-151.0,0.00021877,2]
[330847112,1719863444913,-151.0,0.00021877,2]
[330847113,1719863444924,-151.0,0.00021877,2]
[330847114,1719863444935,-151.0,0.00021877,2]
[330847115,1719863444946,-151.0,0.00021877,2]
[330847116,1719863444957,-151.0,0.00021877,2]
[330847117,1719863444968,-151.0,0.00021877,2]
[330847118,1719863444978,-152.549007,0.00021877,2]
[330847119,1719863444989,-208.634423,0.00021877,2]
[330847120,1719863445000,-208.634423,0.00021877,2]
[330847121,1719863445010,-151.0,0.00021877,2]
[330847122,1719863445020,-151.0,0.00021877,2]
[330847123,1719863445030,-151.0,0.00021877,2]
[330847124,1719863445040,-151.0,0.00021877,2]
[330847125,1719863445050,-151.0,0.00021877,2]
[330847126,1719863445060,-151.0,0.00021877,2]
[330847127,1719863445070,-407.62032,0.00021877,2]
[330847128,1719863445080,-407.62032,0.00021877,2]
[330847129,1719863445090,-826.212408,0.00021877,2]
[330847130,1719863445100,-826.212408,0.00021877,2]
[330847131,1719863445110,-415.29111,0.00021877,2]
[330847132,1719863445120,-415.29111,0.00021877,2]
[330847133,1719863445130,-151.0,0.00021877,2]
[330847134,1719863445143,-669.812282,0.00021877,2]
[330847135,1719863445153,-274.123714,0.00021877,2]
[330847136,1719863445164,-669.812282,0.00021877,2]
[330847137,1719863445173,-151.0,0.00021877,2]
[330847138,1719863445183,-151.0,0.00021877,2]
[330847139,1719863445193,-151.0,0.00021877,2]
[330847140,1719863445204,-151.0,0.00021877,2]
[330847141,1719863445213,-175.653556,0.00021877,2]
[330847142,1719863445225,-175.653556,0.00021877,2]
[330847143,1719863445234,-1180.839963,0.00021877,2]
[330847144,1719863445245,-1180.839963,0.00021877,2]
[330847145,1719863445256,-151.0,0.00021877,2]
[330847146,1719863445266,-151.0,0.00021877,2]
[330847147,1719863445277,-151.0,0.00021877,2]
[330847148,1719863445288,-151.0,0.00021877,2]
[330847149,1719863445299,-151.0,0.00021877,2]
[330847150,1719863445310,-151.0,0.00021877,2]
[330847151,1719863445320,-151.0,0.00021877,2]
[330847152,1719863445330,-667.589417,0.00021877,2]
[330847153,1719863445340,-667.589417,0.00021877,2]
[330847154,1719863445350,-151.0,0.00021877,2]
[330847155,1719863445360,-212.835385,0.00021877,2]
[330847156,1719863445370,-151.0,0.00021877,2]
[330847157,1719863445380,-151.0,0.00021877,2]
[330847158,1719863445390,-151.0,0.00021877,2]
[330847159,1719863445400,-622.501496,0.00021877,2]
[330847160,1719863445410,-622.501496,0.00021877,2]
[330847161,1719863445420,-6824.137721,0.00021877,2]
[330847162,1719863445431,-677.732097,0.00021877,2]
[330847163,1719863445441,-6824.137721,0.00021877,2]
[330847164,1719863445451,-677.732097,0.00021877,2]
[330847165,1719863445461,-151.0,0.00021877,2]
[330847166,1719863445472,-151.0,0.00021877,2]
[330847167,1719863445484,-151.0,0.00021877,2]
[330847168,1719863445494,-184.425866,0.00021877,2]
[330847169,1719863445504,-173.65,0.00021877,2]
[330847170,1719863445514,-151.0,0.00021877,2]
[330847171,1719863445525,-173.65,0.00021877,2]
[330847172,1719863445541,-411.926351,0.00021877,2]
[330847173,1719863445551,-411.926351,0.00021877,2]
[330847174,1719863445561,-772.635236,0.00021877,2]
[330847175,1719863445571,-772.635236,0.00021877,2]
[330847176,1719863445583,-1343.982711,0.00021877,2]
[330847177,1719863445594,-151.0,0.00021877,2]
[330847178,1719863445604,-1343.982711,0.00021877,2]
[330847179,1719863445615,-151.0,0.00021877,2]
[330847180,1719863445624,-151.0,0.00021877,2]
[330847181,1719863445635,-235.008372,0.00021877,2]
[330847182,1719863445644,-151.0,0.00021877,2]
[330847183,1719863445654,-211.93875,0.00021877,2]
[330847184,1719863445664,-151.0,0.00021877,2]
[330847185,1719863445674,-300.0,0.0002188,2]
[330847186,1719863445683,-300.0,0.0002188,2]
[330847187,1719863445693,-304.0,0.0002188,3]
[330847188,1719863445703,-10574.166365,0.00021881,2]
[330847189,1719863445713,-300.0,0.00021881,2]
[330847190,1719863445725,-23744.0124066,0.00021882,2]
[330847191,1719863445735,-151.0,0.00021882,2]
[330847192,1719863445744,-151.0,0.00021882,2]
[330847194,1719863445754,-151.0,0.00021882,2]
[330847195,1719863445764,-1459.58725741,0.00021882,2]
[330847196,1719863445775,-150.0,0.00021885,2]
[330847197,1719863445785,-209.73197584,0.00021886,2]
[330847198,1719863445796,-5918.68096825,0.00021886,2]
[330847199,1719863445806,-550.47298576,0.00021886,2]
[330847201,1719863445816,-581.33393112,0.00021886,2]
[330847203,1719863445826,-155.0,0.00021886,2]
[330847205,1719863445836,-4279.14032286,0.00021886,15]
[330847207,1719863445847,-513.86868,0.00021886,2]
[330847219,1719863446073,-200.0,0.00021886,2]
[330847220,1719863446128,-300.0,0.00021886,2]
[330847221,1719863446140,-300.0,0.00021886,2]
[330847222,1719863446150,-300.0,0.00021886,2]
[330847223,1719863446160,-621.0,0.00021887,30]
[330847224,1719863446170,-2714.0,0.00021887,30]
[330847225,1719863446179,-1000.0,0.00021887,2]
[330847226,1719863446189,-1000.0,0.00021887,2]
[330847227,1719863446198,-1000.0,0.00021887,2]
[330847228,1719863446207,-1000.0,0.00021887,2]
[330847229,1719863446217,-1000.0,0.00021887,2]
[330847230,1719863446229,-1000.0,0.00021887,2]
[330847231,1719863446238,-1000.0,0.00021887,2]
[330847232,1719863446248,-1000.0,0.00021887,2]
[330847233,1719863446257,-1000.0,0.00021887,2]
[330847234,1719863446267,-1000.0,0.00021887,2]
[330847235,1719863446276,-1000.0,0.00021887,2]
[330847236,1719863446286,-1000.0,0.00021887,2]
[330847237,1719863446296,-1000.0,0.00021887,2]
[330847238,1719863446305,-1000.0,0.00021887,2]
[330847239,1719863446314,-1000.0,0.00021887,2]
[330847240,1719863446324,-1000.0,0.00021887,2]
[330847241,1719863446333,-1000.0,0.00021887,2]
[330847242,1719863446342,-1000.0,0.00021887,2]
[330847243,1719863446352,-1000.0,0.00021887,2]
[330847244,1719863446361,-1000.0,0.00021887,2]
[330847245,1719863446370,-1000.0,0.00021887,2]
[330847246,1719863446380,-1000.0,0.00021887,2]
[330847247,1719863446389,-1000.0,0.00021887,2]
[330847248,1719863446399,-1000.0,0.00021887,2]
[330847249,1719863446408,-1000.0,0.00021887,2]
[330847250,1719863446418,-1000.0,0.00021887,2]
[330847251,1719863446427,-163.47041426,0.00021887,2]
[330847252,1719863446437,-780.514645,0.00021887,2]
[330847253,1719863446446,-780.514645,0.00021887,2]
[330847254,1719863446456,-390.148636,0.00021887,2]
[330847255,1719863446465,-390.148636,0.00021887,2]
[330847256,1719863446479,-151.0,0.00021887,2]
[330847257,1719863446488,-151.0,0.00021887,2]
[330847258,1719863446497,-151.0,0.00021887,2]
[330847259,1719863446510,-151.0,0.00021887,2]
[330847260,1719863446519,-151.0,0.00021887,2]
[330847261,1719863446528,-267.001176,0.00021887,2]
[330847262,1719863446542,-151.0,0.00021887,2]
[330847263,1719863446551,-151.0,0.00021887,2]
[330847264,1719863446560,-151.0,0.00021887,2]
[330847265,1719863446569,-151.0,0.00021887,2]
[330847266,1719863446580,-151.0,0.00021887,2]
[330847267,1719863446589,-151.0,0.00021887,2]
[330847268,1719863446599,-151.0,0.00021887,2]
[330847269,1719863446608,-151.0,0.00021887,2]
[330847270,1719863446620,-208.634423,0.00021887,2]
[330847271,1719863446629,-208.634423,0.00021887,2]
[330847272,1719863446638,-150.0,0.00021887,2]
[330847273,1719863446647,-151.0,0.00021887,2]
[330847274,1719863446657,-151.0,0.00021887,2]
[330847275,1719863446666,-180.060901,0.00021887,2]
[330847276,1719863446675,-151.0,0.00021887,2]
[330847277,1719863446684,-151.0,0.00021887,2]
[330847278,1719863446694,-151.0,0.00021887,2]
[330847279,1719863446704,-151.0,0.00021887,2]
[330847280,1719863446713,-667.589417,0.00021887,2]
[330847281,1719863446724,-667.589417,0.00021887,2]
[330847282,1719863446733,-151.0,0.00021887,2]
[330847283,1719863446742,-151.0,0.00021887,2]
[330847284,1719863446751,-151.0,0.00021887,2]
[330847285,1719863446760,-151.0,0.00021887,2]
[330847286,1719863446770,-189.98417699,0.0002189,2]
[330847287,1719863446779,-150.0,0.0002189,2]
[330847288,1719863446788,-150.0,0.0002189,2]
[330847289,1719863446797,-150.0,0.0002189,2]
[330847290,1719863446806,-150.0,0.0002189,2]
[330847291,1719863446815,-150.0,0.0002189,2]
[330847292,1719863446825,-150.0,0.0002189,2]
[330847293,1719863446835,-9527.63732796,0.00021891,20]
[330847294,1719863446844,-300.0,0.00021891,2]
[330847295,1719863446853,-445.27448203,0.00021891,2]
[330847296,1719863446862,-166.44117945,0.00021891,2]
[330847297,1719863446872,-5985.8211492,0.00021892,2]
[330847298,1719863446881,-4640.5430015,0.00021892,2]
[330847299,1719863446890,-3295.2648539,0.00021892,2]
[330847300,1719863446900,-1949.9867062,0.00021892,2]
[330847301,1719863446909,-604.7085585,0.00021892,2]
[330847302,1719863446919,-348.6766559,0.00021892,2]
[330847303,1719863446929,-348.6766559,0.00021892,2]
[330847304,1719863446939,-348.6766559,0.00021892,2]
[330847305,1719863446948,-348.6766559,0.00021892,2]
[330847306,1719863446959,-348.6766559,0.00021892,2]
[330847307,1719863446970,-21269.5662032,0.00021892,2]
[330847308,1719863446980,-16489.3561184,0.00021892,2]
[330847309,1719863446989,-11709.1460336,0.00021892,2]
[330847310,1719863446999,-6928.9359488,0.00021892,2]
[330847311,1719863447008,-2148.7258639,0.00021892,2]
[330847312,1719863447018,-18405.181634,0.00021892,2]
[330847313,1719863447028,-13066.3508615,0.00021892,2]
[330847314,1719863447038,-7727.5200889,0.00021892,2]
[330847315,1719863447048,-2388.6893164,0.00021892,2]
[330847316,1719863447057,-151.0,0.00021892,2]
[330847317,1719863447067,-151.0,0.00021892,2]
[330847318,1719863447076,-299.330384,0.00021892,2]
[330847319,1719863447088,-220.156169,0.00021892,2]
[330847320,1719863447098,-299.330384,0.00021892,2]
[330847321,1719863447108,-220.156169,0.00021892,2]
[330847322,1719863447118,-151.0,0.00021892,2]
[330847323,1719863447127,-151.0,0.00021892,2]
[330847324,1719863447139,-154.088146,0.00021892,2]
[330847325,1719863447149,-151.0,0.00021892,2]
[330847326,1719863447160,-419.313129,0.00021892,2]
[330847327,1719863447169,-419.313129,0.00021892,2]
[330847328,1719863447179,-151.0,0.00021892,2]
[330847329,1719863447188,-151.0,0.00021892,2]
[330847330,1719863447198,-151.0,0.00021892,2]
[330847331,1719863447207,-235.889707,0.00021892,2]
[330847332,1719863447217,-151.0,0.00021892,2]
[330847333,1719863447228,-235.889707,0.00021892,2]
[330847334,1719863447238,-151.0,0.00021892,2]
[330847335,1719863447248,-605.839599,0.00021892,2]
[330847336,1719863447257,-605.839599,0.00021892,2]
[330847337,1719863447268,-151.0,0.00021892,2]
[330847338,1719863447278,-261.651144,0.00021892,2]